[Event "Titled Tuesday Blitz May 9 Early 2023"]
[White "Devaev, Alexander"]
[Black "SashaKuzhilniy"]
[WhiteFideId "4169395"]
[WhiteElo "2172"]
[BlackElo "2581"]
[Result "0-1"]
[Round "09"]
[TimeControl "180+2"]
[Date "2023.05.09"]
[WhiteClock "0:00:00"]
[BlackClock "0:01:03"]

1. Nf3 {[%clk 0:03:00]}  Nf6 {[%clk 0:02:55]} 2. c4 {[%clk 0:03:01]}  Nc6 {[%clk 0:02:54]} 3. d4 {[%clk 0:03:00]}  e5 {[%clk 0:02:50]} 4. d5 {[%clk 0:03:01]}  Bb4+ {[%clk 0:02:48]} 5. Bd2 {[%clk 0:02:40]}  Bxd2+ {[%clk 0:02:48]} 6. Nbxd2 {[%clk 0:02:41]}  e4 {[%clk 0:02:40]} 7. dxc6 {[%clk 0:02:41]}  exf3 {[%clk 0:02:40]} 8. cxd7+ {[%clk 0:02:40]}  Bxd7 {[%clk 0:02:41]} 9. Nxf3 {[%clk 0:02:38]}  Qe7 {[%clk 0:02:41]} 10. Qb3 {[%clk 0:02:08]}  O-O-O {[%clk 0:02:35]} 11. e3 {[%clk 0:02:08]}  Bc6 {[%clk 0:02:15]} 12. Be2 {[%clk 0:02:08]}  g5 {[%clk 0:02:15]} 13. O-O {[%clk 0:01:29]}  g4 {[%clk 0:02:13]} 14. Ne1 {[%clk 0:01:21]}  h5 {[%clk 0:02:09]} 15. Rd1 {[%clk 0:01:19]}  Ne4 {[%clk 0:02:04]} 16. Qc2 {[%clk 0:01:10]}  Rxd1 {[%clk 0:02:00]} 17. Bxd1 {[%clk 0:01:10]}  f5 {[%clk 0:01:49]} 18. Nd3 {[%clk 0:01:10]}  h4 {[%clk 0:01:48]} 19. Nf4 {[%clk 0:01:04]}  g3 {[%clk 0:01:41]} 20. Ng6 {[%clk 0:00:29]}  gxh2+ {[%clk 0:01:28]} 21. Kh1 {[%clk 0:00:24]}  Qg7 {[%clk 0:01:26]} 22. Nxh8 {[%clk 0:00:20]}  Nd2 {[%clk 0:01:19]} 23. Qxf5+ {[%clk 0:00:17]}  Kb8 {[%clk 0:01:19]} 24. f3 {[%clk 0:00:15]}  Nxf1 {[%clk 0:01:17]} 25. Qg6 {[%clk 0:00:14]}  Qxh8 {[%clk 0:01:14]} 26. Bc2 {[%clk 0:00:13]}  a6 {[%clk 0:01:09]} 27. Be4 {[%clk 0:00:09]}  Bxe4 {[%clk 0:01:04]} 28. Qxe4 {[%clk 0:00:00]}  Ng3+ {[%clk 0:01:03]} 0-1


[Site "https://www.chess.com"]

[Event "Titled Tuesday Blitz May 9 Early 2023"]
[White "Brunner, Nicolas"]
[Black "Gurevich, Dmitry"]
[WhiteFideId "620246"]
[BlackFideId "2000407"]
[WhiteElo "2327"]
[BlackElo "2506"]
[Result "0-1"]
[Round "09"]
[TimeControl "180+2"]
[Date "2023.05.09"]
[WhiteClock "0:00:00"]
[BlackClock "0:00:42"]

1. Nf3 {[%clk 0:03:00]}  Nf6 {[%clk 0:02:58]} 2. g3 {[%clk 0:03:01]}  d5 {[%clk 0:02:54]} 3. Bg2 {[%clk 0:03:01]}  c6 {[%clk 0:02:54]} 4. O-O {[%clk 0:03:02]}  Bf5 {[%clk 0:02:54]} 5. c4 {[%clk 0:03:02]}  e6 {[%clk 0:02:53]} 6. cxd5 {[%clk 0:03:02]}  exd5 {[%clk 0:02:49]} 7. d3 {[%clk 0:03:01]}  Be7 {[%clk 0:02:46]} 8. Nc3 {[%clk 0:03:01]}  O-O {[%clk 0:02:45]} 9. Qc2 {[%clk 0:02:58]}  h6 {[%clk 0:02:42]} 10. e4 {[%clk 0:02:58]}  Bh7 {[%clk 0:02:37]} 11. Re1 {[%clk 0:02:35]}  Na6 {[%clk 0:02:24]} 12. a3 {[%clk 0:02:35]}  dxe4 {[%clk 0:02:16]} 13. dxe4 {[%clk 0:02:34]}  Nc5 {[%clk 0:02:15]} 14. b4 {[%clk 0:02:16]}  Qd3 {[%clk 0:02:09]} 15. Qxd3 {[%clk 0:01:48]}  Nxd3 {[%clk 0:02:08]} 16. Re3 {[%clk 0:01:48]}  Rfd8 {[%clk 0:01:57]} 17. Bf1 {[%clk 0:01:38]}  Nxc1 {[%clk 0:01:50]} 18. Rxc1 {[%clk 0:01:37]}  Nd7 {[%clk 0:01:33]} 19. Bc4 {[%clk 0:01:29]}  Kf8 {[%clk 0:01:28]} 20. Bb3 {[%clk 0:01:17]}  a5 {[%clk 0:01:26]} 21. bxa5 {[%clk 0:00:44]}  Bxa3 {[%clk 0:01:25]} 22. Rd1 {[%clk 0:00:40]}  Be7 {[%clk 0:01:16]} 23. Red3 {[%clk 0:00:35]}  Nf6 {[%clk 0:01:15]} 24. Rxd8+ {[%clk 0:00:15]}  Bxd8 {[%clk 0:01:14]} 25. Ne5 {[%clk 0:00:11]}  Bxa5 {[%clk 0:01:11]} 26. Ra1 {[%clk 0:00:09]}  Ra6 {[%clk 0:01:04]} 27. Ne2 {[%clk 0:00:03]}  Bxe4 {[%clk 0:00:57]} 28. Nxf7 {[%clk 0:00:02]}  Bd5 {[%clk 0:00:54]} 29. Bxd5 {[%clk 0:00:02]}  Nxd5 {[%clk 0:00:54]} 30. Nd6 {[%clk 0:00:03]}  Bb4 {[%clk 0:00:47]} 31. Rxa6 {[%clk 0:00:01]}  bxa6 {[%clk 0:00:46]} 32. Nc4 {[%clk 0:00:01]}  a5 {[%clk 0:00:45]} 33. Nd4 {[%clk 0:00:00]}  c5 {[%clk 0:00:42]} 0-1


[Site "https://www.chess.com"]

[Event "Titled Tuesday Blitz May 9 Early 2023"]
[White "Vlassov, Nikolai"]
[Black "Abdilkhair, Abilmansur"]
[WhiteFideId "4103360"]
[BlackFideId "13716417"]
[WhiteElo "2324"]
[BlackElo "2215"]
[Result "1-0"]
[Round "09"]
[TimeControl "180+2"]
[Date "2023.05.09"]
[WhiteClock "0:00:17"]
[BlackClock "0:00:23"]

1. e4 {[%clk 0:02:59]}  e5 {[%clk 0:02:45]} 2. Bc4 {[%clk 0:02:59]}  Nf6 {[%clk 0:02:44]} 3. d3 {[%clk 0:02:59]}  d5 {[%clk 0:02:43]} 4. exd5 {[%clk 0:02:59]}  Nxd5 {[%clk 0:02:44]} 5. Nf3 {[%clk 0:02:59]}  Nc6 {[%clk 0:02:43]} 6. O-O {[%clk 0:02:59]}  Bg4 {[%clk 0:02:41]} 7. Re1 {[%clk 0:02:57]}  Be7 {[%clk 0:02:39]} 8. h3 {[%clk 0:02:57]}  Bh5 {[%clk 0:02:37]} 9. g4 {[%clk 0:02:57]}  Bg6 {[%clk 0:02:37]} 10. Nxe5 {[%clk 0:02:57]}  Nxe5 {[%clk 0:02:37]} 11. Rxe5 {[%clk 0:02:58]}  Nb6 {[%clk 0:02:36]} 12. Bb3 {[%clk 0:02:57]}  O-O {[%clk 0:02:35]} 13. Nc3 {[%clk 0:02:56]}  Bd6 {[%clk 0:02:34]} 14. Re1 {[%clk 0:02:53]}  Qh4 {[%clk 0:02:26]} 15. Qf3 {[%clk 0:02:52]}  Rfe8 {[%clk 0:02:26]} 16. Bd2 {[%clk 0:02:43]}  h5 {[%clk 0:02:24]} 17. Rxe8+ {[%clk 0:02:40]}  Rxe8 {[%clk 0:02:24]} 18. Re1 {[%clk 0:02:41]}  Rxe1+ {[%clk 0:02:18]} 19. Bxe1 {[%clk 0:02:41]}  Nd7 {[%clk 0:02:18]} 20. gxh5 {[%clk 0:02:00]}  Bxh5 {[%clk 0:02:16]} 21. Qxb7 {[%clk 0:02:00]}  Qxh3 {[%clk 0:02:05]} 22. Qa8+ {[%clk 0:01:48]}  Kh7 {[%clk 0:01:55]} 23. Qe4+ {[%clk 0:01:46]}  f5 {[%clk 0:01:51]} 24. Qg2 {[%clk 0:01:45]}  Qh4 {[%clk 0:01:47]} 25. Bd2 {[%clk 0:01:15]}  Ne5 {[%clk 0:01:46]} 26. Bd5 {[%clk 0:01:13]}  Ng4 {[%clk 0:01:29]} 27. Ne2 {[%clk 0:01:03]}  Bc5 {[%clk 0:01:19]} 28. d4 {[%clk 0:01:01]}  Bd6 {[%clk 0:01:16]} 29. c3 {[%clk 0:00:56]}  Qe7 {[%clk 0:01:06]} 30. Bf3 {[%clk 0:00:48]}  c5 {[%clk 0:00:55]} 31. Bf4 {[%clk 0:00:37]}  Bxf4 {[%clk 0:00:51]} 32. Nxf4 {[%clk 0:00:32]}  Qe1+ {[%clk 0:00:48]} 33. Qf1 {[%clk 0:00:32]}  Qxf1+ {[%clk 0:00:39]} 34. Kxf1 {[%clk 0:00:32]}  Nh2+ {[%clk 0:00:40]} 35. Kg2 {[%clk 0:00:32]}  Nxf3 {[%clk 0:00:36]} 36. Nxh5 {[%clk 0:00:32]}  Ne1+ {[%clk 0:00:37]} 37. Kg3 {[%clk 0:00:32]}  Nd3 {[%clk 0:00:38]} 38. dxc5 {[%clk 0:00:24]}  Nxc5 {[%clk 0:00:37]} 39. Nf4 {[%clk 0:00:20]}  Na4 {[%clk 0:00:36]} 40. Nd3 {[%clk 0:00:19]}  Kg6 {[%clk 0:00:34]} 41. c4 {[%clk 0:00:18]}  Kf6 {[%clk 0:00:34]} 42. b4 {[%clk 0:00:17]}  Kf7 {[%clk 0:00:31]} 43. c5 {[%clk 0:00:17]}  Ke6 {[%clk 0:00:30]} 44. Kf4 {[%clk 0:00:17]}  Nc3 {[%clk 0:00:29]} 45. a3 {[%clk 0:00:16]}  Nd5+ {[%clk 0:00:28]} 46. Kg5 {[%clk 0:00:16]}  a6 {[%clk 0:00:25]} 47. Nf4+ {[%clk 0:00:15]}  Nxf4 {[%clk 0:00:23]} 48. Kxf4 {[%clk 0:00:15]}  Kf6 {[%clk 0:00:24]} 49. c6 {[%clk 0:00:15]}  g5+ {[%clk 0:00:24]} 50. Ke3 {[%clk 0:00:15]}  Ke6 {[%clk 0:00:24]} 51. a4 {[%clk 0:00:15]}  Kd6 {[%clk 0:00:25]} 52. b5 {[%clk 0:00:16]}  axb5 {[%clk 0:00:25]} 53. axb5 {[%clk 0:00:16]}  Kc7 {[%clk 0:00:26]} 54. Kd4 {[%clk 0:00:17]}  f4 {[%clk 0:00:24]} 55. Ke4 {[%clk 0:00:17]}  Kb6 {[%clk 0:00:23]} 56. Kf5 {[%clk 0:00:17]} 1-0


[Site "https://www.chess.com"]

[Event "Titled Tuesday Blitz May 9 Early 2023"]
[White "Golubev, Mikhail"]
[Black "Zhu, Jiner"]
[WhiteFideId "14100983"]
[BlackFideId "8608059"]
[WhiteElo "2374"]
[BlackElo "2384"]
[Result "1-0"]
[Round "09"]
[TimeControl "180+2"]
[Date "2023.05.09"]
[WhiteClock "0:00:48"]
[BlackClock "0:00:13"]

1. e4 {[%clk 0:03:00]}  e5 {[%clk 0:02:09]} 2. Nf3 {[%clk 0:03:00]}  Nc6 {[%clk 0:02:09]} 3. Bc4 {[%clk 0:03:00]}  Bc5 {[%clk 0:02:08]} 4. c3 {[%clk 0:02:59]}  Nf6 {[%clk 0:02:08]} 5. d4 {[%clk 0:03:00]}  exd4 {[%clk 0:02:09]} 6. cxd4 {[%clk 0:03:01]}  Bb4+ {[%clk 0:02:09]} 7. Nbd2 {[%clk 0:03:01]}  Nxe4 {[%clk 0:02:08]} 8. d5 {[%clk 0:03:01]}  Ne7 {[%clk 0:02:06]} 9. O-O {[%clk 0:03:00]}  Bxd2 {[%clk 0:02:04]} 10. Nxd2 {[%clk 0:03:01]}  Nxd2 {[%clk 0:02:03]} 11. Bxd2 {[%clk 0:03:00]}  O-O {[%clk 0:01:59]} 12. d6 {[%clk 0:02:55]}  cxd6 {[%clk 0:01:54]} 13. Bb4 {[%clk 0:02:54]}  Nf5 {[%clk 0:01:41]} 14. Qd5 {[%clk 0:02:34]}  Qf6 {[%clk 0:01:37]} 15. Bd3 {[%clk 0:02:16]}  a5 {[%clk 0:01:13]} 16. Bc3 {[%clk 0:01:57]}  Ne7 {[%clk 0:01:11]} 17. Qe4 {[%clk 0:01:16]}  Qg6 {[%clk 0:01:11]} 18. Qxe7 {[%clk 0:01:06]}  Qxd3 {[%clk 0:01:10]} 19. Rad1 {[%clk 0:01:04]}  Qf5 {[%clk 0:01:04]} 20. Rfe1 {[%clk 0:01:03]}  b5 {[%clk 0:00:56]} 21. Re3 {[%clk 0:00:58]}  b4 {[%clk 0:00:54]} 22. Bxg7 {[%clk 0:00:55]}  Kxg7 {[%clk 0:00:44]} 23. Rg3+ {[%clk 0:00:55]}  Qg6 {[%clk 0:00:44]} 24. Rxg6+ {[%clk 0:00:54]}  hxg6 {[%clk 0:00:45]} 25. Rxd6 {[%clk 0:00:53]}  Bb7 {[%clk 0:00:39]} 26. h3 {[%clk 0:00:47]}  Bc6 {[%clk 0:00:38]} 27. Qf6+ {[%clk 0:00:47]}  Kg8 {[%clk 0:00:13]} 28. Rd4 {[%clk 0:00:48]} 1-0


[Site "https://www.chess.com"]

[Event "Titled Tuesday Blitz May 9 Early 2023"]
[White "Arat, Ufuk Sezen"]
[Black "djokovic74"]
[WhiteFideId "6309089"]
[WhiteElo "2289"]
[BlackElo "2664"]
[Result "1-0"]
[Round "09"]
[TimeControl "180+2"]
[Date "2023.05.09"]
[WhiteClock "0:00:15"]
[BlackClock "0:00:05"]

1. e4 {[%clk 0:02:57]}  e6 {[%clk 0:03:00]} 2. d4 {[%clk 0:02:57]}  d5 {[%clk 0:03:01]} 3. Nc3 {[%clk 0:02:57]}  Nf6 {[%clk 0:03:01]} 4. Bg5 {[%clk 0:02:58]}  Be7 {[%clk 0:03:00]} 5. e5 {[%clk 0:02:58]}  Nfd7 {[%clk 0:03:01]} 6. Bxe7 {[%clk 0:02:59]}  Qxe7 {[%clk 0:03:02]} 7. f4 {[%clk 0:03:00]}  a6 {[%clk 0:03:02]} 8. Nf3 {[%clk 0:03:00]}  c5 {[%clk 0:03:02]} 9. dxc5 {[%clk 0:03:01]}  Nc6 {[%clk 0:03:02]} 10. Bd3 {[%clk 0:03:01]}  Nxc5 {[%clk 0:03:02]} 11. Qd2 {[%clk 0:03:02]}  b5 {[%clk 0:02:59]} 12. Ne2 {[%clk 0:03:02]}  Bb7 {[%clk 0:02:42]} 13. c3 {[%clk 0:02:49]}  O-O {[%clk 0:02:36]} 14. Ned4 {[%clk 0:02:48]}  Ne4 {[%clk 0:02:33]} 15. Qe3 {[%clk 0:02:39]}  b4 {[%clk 0:02:31]} 16. O-O {[%clk 0:02:40]}  bxc3 {[%clk 0:02:30]} 17. bxc3 {[%clk 0:02:41]}  Rac8 {[%clk 0:02:28]} 18. f5 {[%clk 0:02:28]}  Na5 {[%clk 0:02:13]} 19. f6 {[%clk 0:02:07]}  gxf6 {[%clk 0:01:35]} 20. Bxe4 {[%clk 0:02:04]}  fxe5 {[%clk 0:01:36]} 21. Bxh7+ {[%clk 0:01:28]}  Kxh7 {[%clk 0:01:33]} 22. Nxe5 {[%clk 0:01:12]}  Qh4 {[%clk 0:00:45]} 23. Rf4 {[%clk 0:01:08]}  Qh6 {[%clk 0:00:32]} 24. Raf1 {[%clk 0:00:39]}  f5 {[%clk 0:00:23]} 25. Qe1 {[%clk 0:00:20]}  Kg7 {[%clk 0:00:15]} 26. Qg3+ {[%clk 0:00:19]}  Kf6 {[%clk 0:00:08]} 27. Ng4+ {[%clk 0:00:17]}  Ke7 {[%clk 0:00:07]} 28. Nxh6 {[%clk 0:00:17]}  Kd6 {[%clk 0:00:06]} 29. Rxf5+ {[%clk 0:00:16]}  Kc5 {[%clk 0:00:06]} 30. Rxf8 {[%clk 0:00:16]}  Rxf8 {[%clk 0:00:05]} 31. Qc7+ {[%clk 0:00:17]}  Bc6 {[%clk 0:00:04]} 32. Qxa5+ {[%clk 0:00:15]}  Kc4 {[%clk 0:00:04]} 33. Qb4+ {[%clk 0:00:15]}  Kd3 {[%clk 0:00:04]} 34. Rd1+ {[%clk 0:00:15]}  Ke3 {[%clk 0:00:04]} 35. Ng4+ {[%clk 0:00:15]}  Kf4 {[%clk 0:00:05]} 36. Qxf8+ {[%clk 0:00:15]}  Ke4 {[%clk 0:00:05]} 37. Qf3# {[%clk 0:00:15]} 1-0


[Site "https://www.chess.com"]

[Event "Titled Tuesday Blitz May 9 Early 2023"]
[White "Rosen, Eric"]
[Black "Fernandez Garcia, Gumersindo"]
[WhiteFideId "2032562"]
[BlackFideId "24516740"]
[WhiteElo "2331"]
[BlackElo "2093"]
[Result "0-1"]
[Round "09"]
[TimeControl "180+2"]
[Date "2023.05.09"]
[WhiteClock "0:00:00"]
[BlackClock "0:00:18"]

1. e4 {[%clk 0:03:00]}  c5 {[%clk 0:03:00]} 2. Nf3 {[%clk 0:02:58]}  g6 {[%clk 0:03:00]} 3. c3 {[%clk 0:02:48]}  Bg7 {[%clk 0:02:59]} 4. d4 {[%clk 0:02:48]}  cxd4 {[%clk 0:03:00]} 5. cxd4 {[%clk 0:02:48]}  d5 {[%clk 0:03:01]} 6. e5 {[%clk 0:02:47]}  Nc6 {[%clk 0:03:00]} 7. Bb5 {[%clk 0:02:46]}  Bg4 {[%clk 0:03:01]} 8. Bxc6+ {[%clk 0:02:31]}  bxc6 {[%clk 0:03:01]} 9. O-O {[%clk 0:02:31]}  Nh6 {[%clk 0:02:59]} 10. h3 {[%clk 0:02:27]}  Bxf3 {[%clk 0:02:59]} 11. Qxf3 {[%clk 0:02:28]}  O-O {[%clk 0:02:55]} 12. Nc3 {[%clk 0:02:11]}  f6 {[%clk 0:02:52]} 13. Qe2 {[%clk 0:01:59]}  Nf5 {[%clk 0:02:48]} 14. Rd1 {[%clk 0:01:57]}  fxe5 {[%clk 0:02:43]} 15. dxe5 {[%clk 0:01:58]}  e6 {[%clk 0:02:43]} 16. b3 {[%clk 0:01:48]}  Qc7 {[%clk 0:02:32]} 17. Re1 {[%clk 0:01:48]}  Nd4 {[%clk 0:02:24]} 18. Qd3 {[%clk 0:00:53]}  Bxe5 {[%clk 0:02:20]} 19. Be3 {[%clk 0:00:52]}  Nf5 {[%clk 0:02:17]} 20. Bc5 {[%clk 0:00:48]}  Rfe8 {[%clk 0:02:12]} 21. Rac1 {[%clk 0:00:47]}  Bf4 {[%clk 0:02:04]} 22. Rc2 {[%clk 0:00:47]}  Qd7 {[%clk 0:01:59]} 23. g3 {[%clk 0:00:45]}  Bh6 {[%clk 0:01:59]} 24. Ne4 {[%clk 0:00:42]}  Bg7 {[%clk 0:01:52]} 25. g4 {[%clk 0:00:39]}  Nh4 {[%clk 0:01:44]} 26. Qg3 {[%clk 0:00:27]}  Qd8 {[%clk 0:01:23]} 27. Nd6 {[%clk 0:00:21]}  Rf8 {[%clk 0:01:23]} 28. Nb7 {[%clk 0:00:21]}  Qf6 {[%clk 0:01:21]} 29. Bxf8 {[%clk 0:00:16]}  Rxf8 {[%clk 0:01:22]} 30. Rf1 {[%clk 0:00:13]}  Nf3+ {[%clk 0:01:20]} 31. Kh1 {[%clk 0:00:11]}  e5 {[%clk 0:01:20]} 32. Nc5 {[%clk 0:00:11]}  Rf7 {[%clk 0:01:07]} 33. b4 {[%clk 0:00:09]}  e4 {[%clk 0:01:06]} 34. b5 {[%clk 0:00:09]}  cxb5 {[%clk 0:01:02]} 35. Rd1 {[%clk 0:00:09]}  Qc6 {[%clk 0:00:54]} 36. Rcc1 {[%clk 0:00:08]}  Be5 {[%clk 0:00:51]} 37. Qg2 {[%clk 0:00:08]}  Qa8 {[%clk 0:00:46]} 38. Nb3 {[%clk 0:00:07]}  d4 {[%clk 0:00:44]} 39. Rc5 {[%clk 0:00:06]}  Bg7 {[%clk 0:00:38]} 40. Rdc1 {[%clk 0:00:04]}  Bf8 {[%clk 0:00:37]} 41. Rc8 {[%clk 0:00:03]}  Qd5 {[%clk 0:00:37]} 42. Rd1 {[%clk 0:00:02]}  d3 {[%clk 0:00:37]} 43. Nd2 {[%clk 0:00:01]}  Nxd2 {[%clk 0:00:32]} 44. Rxd2 {[%clk 0:00:02]}  Qd7 {[%clk 0:00:31]} 45. Rc1 {[%clk 0:00:01]}  Qd4 {[%clk 0:00:31]} 46. Rcd1 {[%clk 0:00:01]}  Bh6 {[%clk 0:00:30]} 47. g5 {[%clk 0:00:02]}  Bf8 {[%clk 0:00:29]} 48. Re1 {[%clk 0:00:02]}  Bb4 {[%clk 0:00:29]} 49. Rxe4 {[%clk 0:00:02]}  Qd7 {[%clk 0:00:29]} 50. Rd1 {[%clk 0:00:02]}  a5 {[%clk 0:00:27]} 51. Qg4 {[%clk 0:00:02]}  Qxg4 {[%clk 0:00:26]} 52. hxg4 {[%clk 0:00:01]}  Rxf2 {[%clk 0:00:25]} 53. Rxd3 {[%clk 0:00:02]}  Rd2 {[%clk 0:00:21]} 54. Rxd2 {[%clk 0:00:02]}  Bxd2 {[%clk 0:00:22]} 55. Re8+ {[%clk 0:00:02]}  Kg7 {[%clk 0:00:22]} 56. Rb8 {[%clk 0:00:02]}  b4 {[%clk 0:00:22]} 57. Rb5 {[%clk 0:00:03]}  a4 {[%clk 0:00:21]} 58. Kg2 {[%clk 0:00:02]}  a3 {[%clk 0:00:21]} 59. Kf3 {[%clk 0:00:02]}  Bc3 {[%clk 0:00:21]} 60. Ke2 {[%clk 0:00:03]}  h6 {[%clk 0:00:20]} 61. gxh6+ {[%clk 0:00:03]}  Kxh6 {[%clk 0:00:21]} 62. Kf3 {[%clk 0:00:03]}  Kg7 {[%clk 0:00:21]} 63. Ke3 {[%clk 0:00:03]}  Kf6 {[%clk 0:00:21]} 64. Kf4 {[%clk 0:00:03]}  Bd2+ {[%clk 0:00:21]} 65. Ke4 {[%clk 0:00:03]}  Bc3 {[%clk 0:00:22]} 66. Kf3 {[%clk 0:00:03]}  Bd2 {[%clk 0:00:22]} 67. Kg3 {[%clk 0:00:03]}  Bc3 {[%clk 0:00:23]} 68. Kf4 {[%clk 0:00:03]}  Bd2+ {[%clk 0:00:23]} 69. Ke4 {[%clk 0:00:04]}  Bc3 {[%clk 0:00:24]} 70. Kd3 {[%clk 0:00:04]}  Be1 {[%clk 0:00:24]} 71. Kc2 {[%clk 0:00:05]}  Bc3 {[%clk 0:00:24]} 72. Kb3 {[%clk 0:00:05]}  Kg7 {[%clk 0:00:24]} 73. g5 {[%clk 0:00:05]}  Kf7 {[%clk 0:00:24]} 74. Kc4 {[%clk 0:00:05]}  Ke6 {[%clk 0:00:24]} 75. Kd3 {[%clk 0:00:05]}  Be1 {[%clk 0:00:21]} 76. Ke4 {[%clk 0:00:06]}  Bd2 {[%clk 0:00:21]} 77. Rb6+ {[%clk 0:00:06]}  Kf7 {[%clk 0:00:22]} 78. Kd3 {[%clk 0:00:06]}  Bxg5 {[%clk 0:00:21]} 79. Rxb4 {[%clk 0:00:05]}  Bc1 {[%clk 0:00:21]} 80. Rb6 {[%clk 0:00:04]}  Bb2 {[%clk 0:00:20]} 81. Ke4 {[%clk 0:00:04]}  Kg7 {[%clk 0:00:18]} 82. Kf4 {[%clk 0:00:04]}  Kh6 {[%clk 0:00:19]} 83. Kg4 {[%clk 0:00:04]}  Kg7 {[%clk 0:00:18]} 84. Rc6 {[%clk 0:00:04]}  Kf7 {[%clk 0:00:16]} 85. Kg5 {[%clk 0:00:04]}  Ke7 {[%clk 0:00:17]} 86. Kxg6 {[%clk 0:00:03]}  Kd7 {[%clk 0:00:17]} 87. Rc2 {[%clk 0:00:02]}  Kd6 {[%clk 0:00:17]} 88. Kf5 {[%clk 0:00:01]}  Kd5 {[%clk 0:00:18]} 89. Kf4 {[%clk 0:00:00]}  Kd4 {[%clk 0:00:18]} 0-1


[Site "https://www.chess.com"]

[Event "Titled Tuesday Blitz May 9 Early 2023"]
[White "Srihari L R"]
[Black "Avazkhonov, Alikhon"]
[WhiteFideId "46617116"]
[BlackFideId "14208504"]
[WhiteElo "2334"]
[BlackElo "1739"]
[Result "1-0"]
[Round "09"]
[TimeControl "180+2"]
[Date "2023.05.09"]
[WhiteClock "0:02:02"]
[BlackClock "0:00:00"]

1. c4 {[%clk 0:02:56]}  e5 {[%clk 0:02:55]} 2. Nc3 {[%clk 0:02:55]}  d6 {[%clk 0:02:54]} 3. Nf3 {[%clk 0:02:54]}  f5 {[%clk 0:02:54]} 4. d4 {[%clk 0:02:54]}  e4 {[%clk 0:02:54]} 5. Ng5 {[%clk 0:02:54]}  Be7 {[%clk 0:02:53]} 6. h4 {[%clk 0:02:51]}  Nf6 {[%clk 0:02:53]} 7. Nh3 {[%clk 0:02:49]}  O-O {[%clk 0:02:53]} 8. Nf4 {[%clk 0:02:50]}  c6 {[%clk 0:02:53]} 9. g3 {[%clk 0:02:48]}  d5 {[%clk 0:02:43]} 10. cxd5 {[%clk 0:02:47]}  cxd5 {[%clk 0:02:44]} 11. Bg2 {[%clk 0:02:46]}  Nc6 {[%clk 0:02:41]} 12. Be3 {[%clk 0:02:46]}  Ng4 {[%clk 0:02:24]} 13. Ncxd5 {[%clk 0:02:37]}  Nxe3 {[%clk 0:02:13]} 14. Nxe7+ {[%clk 0:02:35]}  Qxe7 {[%clk 0:02:09]} 15. fxe3 {[%clk 0:02:36]}  Rd8 {[%clk 0:01:34]} 16. Qb3+ {[%clk 0:02:33]}  Kh8 {[%clk 0:01:34]} 17. h5 {[%clk 0:02:31]}  Qb4+ {[%clk 0:00:58]} 18. Qxb4 {[%clk 0:02:25]}  Nxb4 {[%clk 0:00:59]} 19. Kd2 {[%clk 0:02:21]}  b6 {[%clk 0:00:40]} 20. Rhc1 {[%clk 0:02:12]}  Ba6 {[%clk 0:00:16]} 21. a3 {[%clk 0:02:08]}  Nd5 {[%clk 0:00:14]} 22. Nxd5 {[%clk 0:02:09]}  Rxd5 {[%clk 0:00:14]} 23. Rc7 {[%clk 0:02:09]}  Rdd8 {[%clk 0:00:06]} 24. Rac1 {[%clk 0:02:08]}  Bb5 {[%clk 0:00:07]} 25. g4 {[%clk 0:02:03]}  fxg4 {[%clk 0:00:05]} 26. Bxe4 {[%clk 0:02:04]}  Rab8 {[%clk 0:00:05]} 27. Rxa7 {[%clk 0:02:04]}  Re8 {[%clk 0:00:05]} 28. Bf5 {[%clk 0:02:03]}  g3 {[%clk 0:00:05]} 29. Rg1 {[%clk 0:02:02]}  g6 {[%clk 0:00:03]} 30. hxg6 {[%clk 0:02:02]}  hxg6 {[%clk 0:00:03]} 31. Bxg6 {[%clk 0:02:02]}  Re6 {[%clk 0:00:00]} 32. Rxg3 {[%clk 0:02:02]} 1-0


[Site "https://www.chess.com"]

[Event "Titled Tuesday Blitz May 9 Early 2023"]
[White "Gontcharov, Vladislav"]
[Black "Gutkin, Ilya"]
[WhiteFideId "4123492"]
[BlackFideId "16203470"]
[WhiteElo "2420"]
[BlackElo "2265"]
[Result "1/2-1/2"]
[Round "09"]
[TimeControl "180+2"]
[Date "2023.05.09"]
[WhiteClock "0:00:16"]
[BlackClock "0:00:02"]

1. e4 {[%clk 0:03:00]}  e6 {[%clk 0:02:57]} 2. d4 {[%clk 0:03:00]}  d5 {[%clk 0:02:56]} 3. e5 {[%clk 0:03:00]}  c5 {[%clk 0:02:55]} 4. c3 {[%clk 0:03:00]}  Nc6 {[%clk 0:02:56]} 5. Nf3 {[%clk 0:03:00]}  Nh6 {[%clk 0:02:56]} 6. Be2 {[%clk 0:02:50]}  cxd4 {[%clk 0:02:54]} 7. cxd4 {[%clk 0:02:51]}  Nf5 {[%clk 0:02:53]} 8. b3 {[%clk 0:02:51]}  Bb4+ {[%clk 0:02:51]} 9. Kf1 {[%clk 0:02:51]}  O-O {[%clk 0:02:50]} 10. h4 {[%clk 0:02:50]}  f6 {[%clk 0:02:47]} 11. exf6 {[%clk 0:02:36]}  Qxf6 {[%clk 0:02:45]} 12. Bg5 {[%clk 0:02:29]}  Qf7 {[%clk 0:02:38]} 13. Be3 {[%clk 0:02:01]}  Nxe3+ {[%clk 0:02:27]} 14. fxe3 {[%clk 0:02:01]}  e5 {[%clk 0:02:26]} 15. dxe5 {[%clk 0:01:54]}  Nxe5 {[%clk 0:02:25]} 16. Qd4 {[%clk 0:01:45]}  Nc6 {[%clk 0:02:24]} 17. Qf4 {[%clk 0:01:34]}  Qe6 {[%clk 0:02:13]} 18. Qg5 {[%clk 0:01:18]}  Rf5 {[%clk 0:02:03]} 19. Qg4 {[%clk 0:01:14]}  Qf6 {[%clk 0:01:57]} 20. Nc3 {[%clk 0:01:14]}  Bxc3 {[%clk 0:01:46]} 21. Rd1 {[%clk 0:01:13]}  Ne5 {[%clk 0:01:39]} 22. Qg3 {[%clk 0:01:07]}  Nxf3 {[%clk 0:01:35]} 23. gxf3 {[%clk 0:01:07]}  Be5 {[%clk 0:01:33]} 24. f4 {[%clk 0:01:07]}  Bc7 {[%clk 0:01:01]} 25. Bf3 {[%clk 0:00:55]}  Be6 {[%clk 0:00:58]} 26. h5 {[%clk 0:00:54]}  Rf8 {[%clk 0:00:50]} 27. h6 {[%clk 0:00:52]}  g6 {[%clk 0:00:36]} 28. Ke2 {[%clk 0:00:48]}  Qb2+ {[%clk 0:00:07]} 29. Rd2 {[%clk 0:00:48]}  Qc3 {[%clk 0:00:07]} 30. Rd3 {[%clk 0:00:43]}  Qc2+ {[%clk 0:00:05]} 31. Rd2 {[%clk 0:00:43]}  Qc5 {[%clk 0:00:05]} 32. Rhd1 {[%clk 0:00:35]}  Ba5 {[%clk 0:00:05]} 33. Rd3 {[%clk 0:00:23]}  Qc2+ {[%clk 0:00:05]} 34. Kf1 {[%clk 0:00:24]}  Qxa2 {[%clk 0:00:05]} 35. Bg4 {[%clk 0:00:24]}  R5f6 {[%clk 0:00:05]} 36. Bxe6+ {[%clk 0:00:22]}  Rxe6 {[%clk 0:00:06]} 37. Rxd5 {[%clk 0:00:23]}  Qxb3 {[%clk 0:00:05]} 38. R5d3 {[%clk 0:00:21]}  Qb5 {[%clk 0:00:05]} 39. Kg2 {[%clk 0:00:21]}  Qc6+ {[%clk 0:00:05]} 40. Kh2 {[%clk 0:00:21]}  Re7 {[%clk 0:00:04]} 41. f5 {[%clk 0:00:19]}  Rxf5 {[%clk 0:00:03]} 42. Qb8+ {[%clk 0:00:16]}  Rf8 {[%clk 0:00:03]} 43. Qg3 {[%clk 0:00:16]}  Qf6 {[%clk 0:00:03]} 44. Rd5 {[%clk 0:00:15]}  Qf2+ {[%clk 0:00:02]} 45. Qxf2 {[%clk 0:00:15]}  Rxf2+ {[%clk 0:00:02]} 46. Kg3 {[%clk 0:00:16]}  Rf8 {[%clk 0:00:03]} 47. Rxa5 {[%clk 0:00:16]}  Rxe3+ {[%clk 0:00:03]} 48. Kg4 {[%clk 0:00:16]}  Re4+ {[%clk 0:00:02]} 49. Kg3 {[%clk 0:00:16]}  a6 {[%clk 0:00:01]} 50. Rd7 {[%clk 0:00:16]}  Rf7 {[%clk 0:00:01]} 51. Rd8+ {[%clk 0:00:16]}  Rf8 {[%clk 0:00:02]} 52. Rd7 {[%clk 0:00:17]}  Rb4 {[%clk 0:00:02]} 53. Rg7+ {[%clk 0:00:16]}  Kh8 {[%clk 0:00:02]} 54. Rd5 {[%clk 0:00:16]}  Rb3+ {[%clk 0:00:01]} 55. Kg4 {[%clk 0:00:16]}  Rb4+ {[%clk 0:00:01]} 56. Kg3 {[%clk 0:00:16]}  Rb3+ {[%clk 0:00:02]} 57. Kg4 {[%clk 0:00:16]}  Rb4+ {[%clk 0:00:02]} 58. Kg3 {[%clk 0:00:16]} 1/2-1/2


[Site "https://www.chess.com"]